Workbook

Sheet Sheet
A1: Total, clean survey
B2: Frequency Table | I2: Teen library volunteers | P2: Non-volunteers | S2: Reviewed with library staff | Z2: Non-reviewed | AC2: Female | AJ2: Male | AM2: Age 9-15 | AT2: Age 16-21
B4: LIBREV | I4: LIBREV | S4: LIBREV | AC4: LIBREV | AM4: LIBREV | AX4: Library volunteer | BA4: Reviewed with librarian | BD4: Age | BG4: Sex
A5: I have reviewed the survey information on this page with the librarian. | D5: Frequency | E5: Percent | F5: Valid Percent | G5: Cumulative Percent | K5: Frequency | L5: Percent | M5: Valid Percent | N5: Cumulative Percent | U5: Frequency | V5: Percent | W5: Valid Percent | X5: Cumulative Percent | AE5: Frequency | AF5: Percent | AG5: Valid Percent | AH5: Cumulative Percent | AO5: Frequency | AP5: Percent | AQ5: Valid Percent | AR5: Cumulative Percent | AX5: Yes | AY5: No | BA5: Yes | BB5: No | BD5: <16 | BE5: 16+ | BG5: Male | BH5: Female
B6: Valid | C6: 0 | D6: 29 | E6: 23.7704918 | F6: 23.7704918 | G6: 23.7704918 | I6: Valid | J6: 0 | K6: 14 | L6: 24.13793103 | M6: 24.13793103 | N6: 24.13793103 | P6: =$D6-K6 -> 15 | Q6: =P6/P8 -> 0.234375 | S6: Valid | Z6: =$D6-U6 -> 29 | AA6: =Z6/Z8 -> 0.237704918 | AC6: Valid | AD6: 0 | AE6: 24 | AF6: 27.27272727 | AG6: 27.27272727 | AH6: 27.27272727 | AJ6: =$D6-AE6 -> 5 | AK6: =AJ6/AJ8 -> 0.1470588235 | AM6: Valid | AN6: 0 | AO6: 13 | AP6: 20.63492063 | AQ6: 20.63492063 | AR6: 20.63492063 | AT6: =$D6-AO6 -> 16 | AU6: =AT6/AT8 -> 0.2711864407 | AW6: Consented to do survey
C7: 1 | D7: 93 | E7: 76.2295082 | F7: 76.2295082 | G7: 100 | J7: 1 | K7: 44 | L7: 75.86206897 | M7: 75.86206897 | N7: 100 | P7: =$D7-K7 -> 49 | Q7: =P7/P8 -> 0.765625 | T7: 1 | U7: 93 | V7: 100 | W7: 100 | X7: 100 | Z7: =$D7-U7 -> 0 | AA7: =Z7/Z8 -> 0 | AD7: 1 | AE7: 64 | AF7: 72.72727273 | AG7: 72.72727273 | AH7: 100 | AJ7: =$D7-AE7 -> 29 | AK7: =AJ7/AJ8 -> 0.8529411765 | AN7: 1 | AO7: 50 | AP7: 79.36507937 | AQ7: 79.36507937 | AR7: 100 | AT7: =$D7-AO7 -> 43 | AU7: =AT7/AT8 -> 0.7288135593 | AW7: Yes | AX7: =L12/100 -> 0.9827586207 | AY7: =Q12 -> 0.96875 | BA7: =V12/100 -> 0.9892473118 | BB7: =AA12 -> 0.9310344828 | BD7: =AF12/100 -> 0.9659090909 | BE7: =AK12 -> 1 | BG7: =AP12/100 -> 1 | BH7: =AU12 -> 0.9491525424
C8: Total | D8: 122 | E8: 100 | F8: 100 | J8: Total | K8: 58 | L8: 100 | M8: 100 | P8: =$D8-K8 -> 64 | Z8: =$D8-U8 -> 122 | AD8: Total | AE8: 88 | AF8: 100 | AG8: 100 | AJ8: =$D8-AE8 -> 34 | AN8: Total | AO8: 63 | AP8: 100 | AQ8: 100 | AT8: =$D8-AO8 -> 59 | AW8: No | AX8: =L13/100 -> 0.01724137931 | AY8: =Q13 -> 0.03125 | BA8: =V13/100 -> 0.01075268817 | BB8: =AA13 -> 0.06896551724 | BD8: =AF13/100 -> 0.03409090909 | BE8: =AK13 -> 0 | BG8: =AP13/100 -> 0 | BH8: =AU13 -> 0.05084745763
AW9: Reviewed survey with librarian
B10: CONSENT | I10: CONSENT | S10: CONSENT | AC10: CONSENT | AM10: CONSENT | AW10: Yes | AX10: =L7/100 -> 0.7586206897 | AY10: =Q7 -> 0.765625 | BA10: =V7/100 -> 1 | BB10: =AA7 -> 0 | BD10: =AF7/100 -> 0.7272727273 | BE10: =AK7 -> 0.8529411765 | BG10: =AP7/100 -> 0.7936507937 | BH10: =AU7 -> 0.7288135593
A11: I have read the statement above and agree to participate. | D11: Frequency | E11: Percent | F11: Valid Percent | G11: Cumulative Percent | K11: Frequency | L11: Percent | M11: Valid Percent | N11: Cumulative Percent | U11: Frequency | V11: Percent | W11: Valid Percent | X11: Cumulative Percent | AE11: Frequency | AF11: Percent | AG11: Valid Percent | AH11: Cumulative Percent | AO11: Frequency | AP11: Percent | AQ11: Valid Percent | AR11: Cumulative Percent | AW11: No | AX11: =L6/100 -> 0.2413793103 | AY11: =Q6 -> 0.234375 | BA11: =V6/100 -> 0 | BB11: =AA6 -> 0.237704918 | BD11: =AF6/100 -> 0.2727272727 | BE11: =AK6 -> 0.1470588235 | BG11: =AP6/100 -> 0.2063492063 | BH11: =AU6 -> 0.2711864407
B12: Valid | C12: 1 | D12: 119 | E12: 97.54098361 | F12: 97.54098361 | G12: 97.54098361 | I12: Valid | J12: 1 | K12: 57 | L12: 98.27586207 | M12: 98.27586207 | N12: 98.27586207 | P12: =$D12-K12 -> 62 | Q12: =P12/P14 -> 0.96875 | S12: Valid | T12: 1 | U12: 92 | V12: 98.92473118 | W12: 98.92473118 | X12: 98.92473118 | Z12: =$D12-U12 -> 27 | AA12: =Z12/Z14 -> 0.9310344828 | AC12: Valid | AD12: 1 | AE12: 85 | AF12: 96.59090909 | AG12: 96.59090909 | AH12: 96.59090909 | AJ12: =$D12-AE12 -> 34 | AK12: =AJ12/AJ14 -> 1 | AM12: Valid | AN12: 1 | AO12: 63 | AP12: 100 | AQ12: 100 | AR12: 100 | AT12: =$D12-AO12 -> 56 | AU12: =AT12/AT14 -> 0.9491525424 | AW12: Library has YA space
C13: 2 | D13: 3 | E13: 2.459016393 | F13: 2.459016393 | G13: 100 | J13: 2 | K13: 1 | L13: 1.724137931 | M13: 1.724137931 | N13: 100 | P13: =$D13-K13 -> 2 | Q13: =P13/P14 -> 0.03125 | T13: 2 | U13: 1 | V13: 1.075268817 | W13: 1.075268817 | X13: 100 | Z13: =$D13-U13 -> 2 | AA13: =Z13/Z14 -> 0.06896551724 | AD13: 2 | AE13: 3 | AF13: 3.409090909 | AG13: 3.409090909 | AH13: 100 | AJ13: =$D13-AE13 -> 0 | AK13: =AJ13/AJ14 -> 0 | AT13: =$D13-AO13 -> 3 | AU13: =AT13/AT14 -> 0.05084745763 | AW13: Yes | AX13: =L19/100 -> 1 | AY13: =Q19 -> 0.96875 | BA13: =V19/100 -> 1 | BB13: =AA19 -> 0.9310344828 | BD13: =AF19/100 -> 0.9772727273 | BE13: =AK19 -> 1 | BG13: =AP19/100 -> 0.9841269841 | BH13: =AU19 -> 0.9830508475
C14: Total | D14: 122 | E14: 100 | F14: 100 | J14: Total | K14: 58 | L14: 100 | M14: 100 | P14: =$D14-K14 -> 64 | T14: Total | U14: 93 | V14: 100 | W14: 100 | Z14: =$D14-U14 -> 29 | AD14: Total | AE14: 88 | AF14: 100 | AG14: 100 | AJ14: =$D14-AE14 -> 34 | AO14: 63 | AT14: =$D14-AO14 -> 59 | AW14: No | AX14: =L18/100 -> 0 | AY14: =Q18 -> 0.03125 | BA14: =V18/100 -> 0 | BB14: =AA18 -> 0.06896551724 | BD14: =AF18/100 -> 0.02272727273 | BE14: =AK18 -> 0 | BG14: =AP18/100 -> 0.01587301587 | BH14: =AU18 -> 0.01694915254
AW15: I used YA space
B16: LIBHASTS | I16: LIBHASTS | S16: LIBHASTS | AC16: LIBHASTS | AM16: LIBHASTS | AW16: Yes | AX16: =L25/100 -> 0.9482758621 | AY16: =Q25 -> 0.84375 | BA16: =V25/100 -> 0.8924731183 | BB16: =AA25 -> 0.962962963 | BD16: =AF25/100 -> 0.9204545455 | BE16: =AK25 -> 0.8235294118 | BG16: =AP25/100 -> 0.9047619048 | BH16: =AU25 -> 0.8813559322
A17: My library has a Young Adult/Teen section | D17: Frequency | E17: Percent | F17: Valid Percent | G17: Cumulative Percent | K17: Frequency | L17: Percent | M17: Valid Percent | N17: Cumulative Percent | U17: Frequency | V17: Percent | W17: Valid Percent | X17: Cumulative Percent | AE17: Frequency | AF17: Percent | AG17: Valid Percent | AH17: Cumulative Percent | AO17: Frequency | AP17: Percent | AQ17: Valid Percent | AR17: Cumulative Percent | AW17: No | AX17: =L24/100 -> 0.05172413793 | AY17: =Q24 -> 0.125 | BA17: =V24/100 -> 0.1075268817 | BB17: =AA24 -> 0.03703703704 | BD17: =AF24/100 -> 0.05681818182 | BE17: =AK24 -> 0.1764705882 | BG17: =AP24/100 -> 0.09523809524 | BH17: =AU24 -> 0.08474576271
B18: Valid | C18: 0 | D18: 2 | E18: 1.639344262 | F18: 1.639344262 | G18: 1.639344262 | P18: =$D18-K18 -> 2 | Q18: =P18/P20 -> 0.03125 | S18: Valid | Z18: =$D18-U18 -> 2 | AA18: =Z18/Z20 -> 0.06896551724 | AC18: Valid | AD18: 0 | AE18: 2 | AF18: 2.272727273 | AG18: 2.272727273 | AH18: 2.272727273 | AJ18: =$D18-AE18 -> 0 | AK18: =AJ18/AJ20 -> 0 | AM18: Valid | AN18: 0 | AO18: 1 | AP18: 1.587301587 | AQ18: 1.587301587 | AR18: 1.587301587 | AT18: =$D18-AO18 -> 1 | AU18: =AT18/AT20 -> 0.01694915254 | AW18: YA space is my favorite place in library
C19: 1 | D19: 120 | E19: 98.36065574 | F19: 98.36065574 | G19: 100 | I19: Valid | J19: 1 | K19: 58 | L19: 100 | M19: 100 | N19: 100 | P19: =$D19-K19 -> 62 | Q19: =P19/P20 -> 0.96875 | T19: 1 | U19: 93 | V19: 100 | W19: 100 | X19: 100 | Z19: =$D19-U19 -> 27 | AA19: =Z19/Z20 -> 0.9310344828 | AD19: 1 | AE19: 86 | AF19: 97.72727273 | AG19: 97.72727273 | AH19: 100 | AJ19: =$D19-AE19 -> 34 | AK19: =AJ19/AJ20 -> 1 | AN19: 1 | AO19: 62 | AP19: 98.41269841 | AQ19: 98.41269841 | AR19: 100 | AT19: =$D19-AO19 -> 58 | AU19: =AT19/AT20 -> 0.9830508475 | AW19: Yes | AX19: =L33/100 -> 0.7068965517 | AY19: =Q33 -> 0.609375 | BA19: =V33/100 -> 0.6129032258 | BB19: =AA33 -> 0.7931034483 | BD19: =AF33/100 -> 0.6477272727 | BE19: =AK33 -> 0.6764705882 | BG19: =AP33/100 -> 0.6984126984 | BH19: =AU33 -> 0.6101694915
C20: Total | D20: 122 | E20: 100 | F20: 100 | K20: 58 | P20: =$D20-K20 -> 64 | U20: 93 | Z20: =$D20-U20 -> 29 | AD20: Total | AE20: 88 | AF20: 100 | AG20: 100 | AJ20: =$D20-AE20 -> 34 | AN20: Total | AO20: 63 | AP20: 100 | AQ20: 100 | AT20: =$D20-AO20 -> 59 | AW20: No | AX20: =L32/100 -> 0.2413793103 | AY20: =Q32 -> 0.359375 | BA20: =V32/100 -> 0.3548387097 | BB20: =AA32 -> 0.1379310345 | BD20: =AF32/100 -> 0.2954545455 | BE20: =AK32 -> 0.3235294118 | BG20: =AP32/100 -> 0.2698412698 | BH20: =AU32 -> 0.3389830508
AW21: Number | AX21: =K14 -> 58 | AY21: =P14 -> 64 | BA21: =U14 -> 93 | BB21: =Z14 -> 29 | BD21: =AE14 -> 88 | BE21: =AJ14 -> 34 | BG21: =AO14 -> 63 | BH21: =AT14 -> 59
B22: tslikea | I22: tslikea | S22: tslikea | AC22: tslikea | AM22: tslikea
A23: Please check true or false: - I visit the YA/Teen section at the library because I like it | D23: Frequency | E23: Percent | F23: Valid Percent | G23: Cumulative Percent | K23: Frequency | L23: Percent | M23: Valid Percent | N23: Cumulative Percent | U23: Frequency | V23: Percent | W23: Valid Percent | X23: Cumulative Percent | AE23: Frequency | AF23: Percent | AG23: Valid Percent | AH23: Cumulative Percent | AO23: Frequency | AP23: Percent | AQ23: Valid Percent | AR23: Cumulative Percent
B24: Valid | C24: 0 | D24: 11 | E24: 9.016393443 | F24: 9.166666667 | G24: 9.166666667 | I24: Valid | J24: 0 | K24: 3 | L24: 5.172413793 | M24: 5.172413793 | N24: 5.172413793 | P24: =$D24-K24 -> 8 | Q24: =P24/P$8 -> 0.125 | S24: Valid | T24: 0 | U24: 10 | V24: 10.75268817 | W24: 10.75268817 | X24: 10.75268817 | Z24: =$D24-U24 -> 1 | AA24: =Z24/Z26 -> 0.03703703704 | AC24: Valid | AD24: 0 | AE24: 5 | AF24: 5.681818182 | AG24: 5.813953488 | AH24: 5.813953488 | AJ24: =$D24-AE24 -> 6 | AK24: =AJ24/AJ28 -> 0.1764705882 | AM24: Valid | AN24: 0 | AO24: 6 | AP24: 9.523809524 | AQ24: 9.523809524 | AR24: 9.523809524 | AT24: =$D24-AO24 -> 5 | AU24: =AT24/AT28 -> 0.08474576271
C25: 1 | D25: 109 | E25: 89.3442623 | F25: 90.83333333 | G25: 100 | J25: 1 | K25: 55 | L25: 94.82758621 | M25: 94.82758621 | N25: 100 | P25: =$D25-K25 -> 54 | Q25: =P25/P$8 -> 0.84375 | T25: 1 | U25: 83 | V25: 89.24731183 | W25: 89.24731183 | X25: 100 | Z25: =$D25-U25 -> 26 | AA25: =Z25/Z26 -> 0.962962963 | AD25: 1 | AE25: 81 | AF25: 92.04545455 | AG25: 94.18604651 | AH25: 100 | AJ25: =$D25-AE25 -> 28 | AK25: =AJ25/AJ28 -> 0.8235294118 | AN25: 1 | AO25: 57 | AP25: 90.47619048 | AQ25: 90.47619048 | AR25: 100 | AT25: =$D25-AO25 -> 52 | AU25: =AT25/AT28 -> 0.8813559322
C26: Total | D26: 120 | E26: 98.36065574 | F26: 100 | P26: =$D26-K26 -> 120 | T26: Total | U26: 93 | V26: 100 | W26: 100 | Z26: =$D26-U26 -> 27 | AD26: Total | AE26: 86 | AF26: 97.72727273 | AG26: 100 | AJ26: =$D26-AE26 -> 34 | AT26: =$D26-AO26 -> 120
B27: Missing | C27: System | D27: 2 | E27: 1.639344262 | P27: =$D27-K27 -> 2 | AC27: Missing | AD27: System | AE27: 2 | AF27: 2.272727273 | AJ27: =$D27-AE27 -> 0 | AT27: =$D27-AO27 -> 2
B28: Total | D28: 122 | E28: 100 | J28: Total | K28: 58 | L28: 100 | M28: 100 | P28: =$D28-K28 -> 64 | AC28: Total | AE28: 88 | AF28: 100 | AJ28: =$D28-AE28 -> 34 | AN28: Total | AO28: 63 | AP28: 100 | AQ28: 100 | AT28: =$D28-AO28 -> 59
B30: tsfava | I30: tsfava | S30: tsfava | AC30: tsfava | AM30: tsfava
A31: Please check true or false: - The YA/Teen section is my favorite place in this library | D31: Frequency | E31: Percent | F31: Valid Percent | G31: Cumulative Percent | K31: Frequency | L31: Percent | M31: Valid Percent | N31: Cumulative Percent | U31: Frequency | V31: Percent | W31: Valid Percent | X31: Cumulative Percent | AE31: Frequency | AF31: Percent | AG31: Valid Percent | AH31: Cumulative Percent | AO31: Frequency | AP31: Percent | AQ31: Valid Percent | AR31: Cumulative Percent
B32: Valid | C32: 0 | D32: 37 | E32: 30.32786885 | F32: 31.62393162 | G32: 31.62393162 | I32: Valid | J32: 0 | K32: 14 | L32: 24.13793103 | M32: 25.45454545 | N32: 25.45454545 | P32: =$D32-K32 -> 23 | Q32: =P32/P$8 -> 0.359375 | S32: Valid | T32: 0 | U32: 33 | V32: 35.48387097 | W32: 36.66666667 | X32: 36.66666667 | Z32: =$D32-U32 -> 4 | AA32: =Z32/Z$36 -> 0.1379310345 | AC32: Valid | AD32: 0 | AE32: 26 | AF32: 29.54545455 | AG32: 31.3253012 | AH32: 31.3253012 | AJ32: =$D32-AE32 -> 11 | AK32: =AJ32/AJ$8 -> 0.3235294118 | AM32: Valid | AN32: 0 | AO32: 17 | AP32: 26.98412698 | AQ32: 27.86885246 | AR32: 27.86885246 | AT32: =$D32-AO32 -> 20 | AU32: =AT32/AT$8 -> 0.3389830508
C33: 1 | D33: 80 | E33: 65.57377049 | F33: 68.37606838 | G33: 100 | J33: 1 | K33: 41 | L33: 70.68965517 | M33: 74.54545455 | N33: 100 | P33: =$D33-K33 -> 39 | Q33: =P33/P$8 -> 0.609375 | T33: 1 | U33: 57 | V33: 61.29032258 | W33: 63.33333333 | X33: 100 | Z33: =$D33-U33 -> 23 | AA33: =Z33/Z$36 -> 0.7931034483 | AD33: 1 | AE33: 57 | AF33: 64.77272727 | AG33: 68.6746988 | AH33: 100 | AJ33: =$D33-AE33 -> 23 | AK33: =AJ33/AJ$8 -> 0.6764705882 | AN33: 1 | AO33: 44 | AP33: 69.84126984 | AQ33: 72.13114754 | AR33: 100 | AT33: =$D33-AO33 -> 36 | AU33: =AT33/AT$8 -> 0.6101694915
C34: Total | D34: 117 | E34: 95.90163934 | F34: 100 | J34: Total | K34: 55 | L34: 94.82758621 | M34: 100 | P34: =$D34-K34 -> 62 | T34: Total | U34: 90 | V34: 96.77419355 | W34: 100 | Z34: =$D34-U34 -> 27 | AD34: Total | AE34: 83 | AF34: 94.31818182 | AG34: 100 | AJ34: =$D34-AE34 -> 34 | AN34: Total | AO34: 61 | AP34: 96.82539683 | AQ34: 100 | AT34: =$D34-AO34 -> 56
B35: Missing | C35: System | D35: 5 | E35: 4.098360656 | I35: Missing | J35: System | K35: 3 | L35: 5.172413793 | P35: =$D35-K35 -> 2 | S35: Missing | T35: System | U35: 3 | V35: 3.225806452 | Z35: =$D35-U35 -> 2 | AC35: Missing | AD35: System | AE35: 5 | AF35: 5.681818182 | AJ35: =$D35-AE35 -> 0 | AM35: Missing | AN35: System | AO35: 2 | AP35: 3.174603175 | AT35: =$D35-AO35 -> 3
B36: Total | D36: 122 | E36: 100 | I36: Total | K36: 58 | L36: 100 | P36: =$D36-K36 -> 64 | S36: Total | U36: 93 | V36: 100 | Z36: =$D36-U36 -> 29 | AC36: Total | AE36: 88 | AF36: 100 | AJ36: =$D36-AE36 -> 34 | AM36: Total | AO36: 63 | AP36: 100 | AT36: =$D36-AO36 -> 59
B38: tscomfora
A39: Please check true or false: - This library's YA/Teen section has comfortable places to sit and hang out | D39: Frequency | E39: Percent | F39: Valid Percent | G39: Cumulative Percent
B40: Valid | C40: 0 | D40: 17 | E40: 13.93442623 | F40: 14.28571429 | G40: 14.28571429
C41: 1 | D41: 102 | E41: 83.60655738 | F41: 85.71428571 | G41: 100
C42: Total | D42: 119 | E42: 97.54098361 | F42: 100
B43: Missing | C43: System | D43: 3 | E43: 2.459016393
B44: Total | D44: 122 | E44: 100
B46: tsrooma
A47: Please check true or false: - The YA/Teen section has room to spread out | D47: Frequency | E47: Percent | F47: Valid Percent | G47: Cumulative Percent
B48: Valid | C48: 0 | D48: 39 | E48: 31.96721311 | F48: 33.33333333 | G48: 33.33333333
C49: 1 | D49: 78 | E49: 63.93442623 | F49: 66.66666667 | G49: 100
C50: Total | D50: 117 | E50: 95.90163934 | F50: 100
B51: Missing | C51: System | D51: 5 | E51: 4.098360656
B52: Total | D52: 122 | E52: 100
B54: tscolora
A55: Please check true or false: - I like the colors in the YA/Teen section | D55: Frequency | E55: Percent | F55: Valid Percent | G55: Cumulative Percent
B56: Valid | C56: 0 | D56: 32 | E56: 26.2295082 | F56: 27.5862069 | G56: 27.5862069
C57: 1 | D57: 84 | E57: 68.85245902 | F57: 72.4137931 | G57: 100
C58: Total | D58: 116 | E58: 95.08196721 | F58: 100
B59: Missing | C59: System | D59: 6 | E59: 4.918032787
B60: Total | D60: 122 | E60: 100
B62: tsfinda
A63: Please check true or false: - I find what I came for in the YA/Teen section most of the time | D63: Frequency | E63: Percent | F63: Valid Percent | G63: Cumulative Percent
B64: Valid | C64: 0 | D64: 21 | E64: 17.21311475 | F64: 17.79661017 | G64: 17.79661017
C65: 1 | D65: 97 | E65: 79.50819672 | F65: 82.20338983 | G65: 100
C66: Total | D66: 118 | E66: 96.72131148 | F66: 100
B67: Missing | C67: System | D67: 4 | E67: 3.278688525
B68: Total | D68: 122 | E68: 100
B70: tsnearbya
A71: Please check true or false: - I like the other library sections that are near the YA/Teen section | D71: Frequency | E71: Percent | F71: Valid Percent | G71: Cumulative Percent
B72: Valid | C72: 0 | D72: 22 | E72: 18.03278689 | F72: 18.8034188 | G72: 18.8034188
C73: 1 | D73: 95 | E73: 77.86885246 | F73: 81.1965812 | G73: 100
C74: Total | D74: 117 | E74: 95.90163934 | F74: 100
B75: Missing | C75: System | D75: 5 | E75: 4.098360656
B76: Total | D76: 122 | E76: 100
B78: tshappya
A79: Please check true or false: - Mostly I am happier leaving the library than when I arrived | D79: Frequency | E79: Percent | F79: Valid Percent | G79: Cumulative Percent
B80: Valid | C80: 0 | D80: 29 | E80: 23.7704918 | F80: 25 | G80: 25
C81: 1 | D81: 87 | E81: 71.31147541 | F81: 75 | G81: 100
C82: Total | D82: 116 | E82: 95.08196721 | F82: 100
B83: Missing | C83: System | D83: 6 | E83: 4.918032787
B84: Total | D84: 122 | E84: 100
B86: AGE | I86: AGE | S86: AGE | AC86: AGE | AM86: AGE
A87: Please enter your age: - Age in years | D87: Frequency | E87: Percent | F87: Valid Percent | G87: Cumulative Percent | K87: Frequency | L87: Percent | M87: Valid Percent | N87: Cumulative Percent | U87: Frequency | V87: Percent | W87: Valid Percent | X87: Cumulative Percent | AE87: Frequency | AF87: Percent | AG87: Valid Percent | AH87: Cumulative Percent | AO87: Frequency | AP87: Percent | AQ87: Valid Percent | AR87: Cumulative Percent
B88: Valid | C88: 10 | D88: 1 | E88: 0.8196721311 | F88: 0.8333333333 | G88: 0.8333333333 | I88: Valid | S88: Valid | AC88: Valid | AM88: Valid | AN88: 10 | AO88: 1 | AP88: 1.587301587 | AQ88: 1.587301587 | AR88: 1.587301587
C89: 11 | D89: 1 | E89: 0.8196721311 | F89: 0.8333333333 | G89: 1.666666667 | T89: 11 | U89: 1 | V89: 1.075268817 | W89: 1.075268817 | X89: 1.075268817 | AD89: 11 | AE89: 1 | AF89: 1.136363636 | AG89: 1.162790698 | AH89: 1.162790698 | AN89: 11 | AO89: 1 | AP89: 1.587301587 | AQ89: 1.587301587 | AR89: 3.174603175
C90: 12 | D90: 7 | E90: 5.737704918 | F90: 5.833333333 | G90: 7.5 | J90: 12 | K90: 1 | L90: 1.724137931 | M90: 1.754385965 | N90: 1.754385965 | T90: 12 | U90: 6 | V90: 6.451612903 | W90: 6.451612903 | X90: 7.52688172 | AD90: 12 | AE90: 5 | AF90: 5.681818182 | AG90: 5.813953488 | AH90: 6.976744186 | AN90: 12 | AO90: 7 | AP90: 11.11111111 | AQ90: 11.11111111 | AR90: 14.28571429
C91: 13 | D91: 13 | E91: 10.6557377 | F91: 10.83333333 | G91: 18.33333333 | J91: 13 | K91: 5 | L91: 8.620689655 | M91: 8.771929825 | N91: 10.52631579 | T91: 13 | U91: 8 | V91: 8.602150538 | W91: 8.602150538 | X91: 16.12903226 | AD91: 13 | AE91: 11 | AF91: 12.5 | AG91: 12.79069767 | AH91: 19.76744186 | AN91: 13 | AO91: 13 | AP91: 20.63492063 | AQ91: 20.63492063 | AR91: 34.92063492
C92: 14 | D92: 14 | E92: 11.47540984 | F92: 11.66666667 | G92: 30 | J92: 14 | K92: 9 | L92: 15.51724138 | M92: 15.78947368 | N92: 26.31578947 | T92: 14 | U92: 12 | V92: 12.90322581 | W92: 12.90322581 | X92: 29.03225806 | AD92: 14 | AE92: 9 | AF92: 10.22727273 | AG92: 10.46511628 | AH92: 30.23255814 | AN92: 14 | AO92: 14 | AP92: 22.22222222 | AQ92: 22.22222222 | AR92: 57.14285714
C93: 15 | D93: 27 | E93: 22.13114754 | F93: 22.5 | G93: 52.5 | J93: 15 | K93: 13 | L93: 22.4137931 | M93: 22.80701754 | N93: 49.12280702 | T93: 15 | U93: 23 | V93: 24.7311828 | W93: 24.7311828 | X93: 53.76344086 | AD93: 15 | AE93: 18 | AF93: 20.45454545 | AG93: 20.93023256 | AH93: 51.1627907 | AN93: 15 | AO93: 27 | AP93: 42.85714286 | AQ93: 42.85714286 | AR93: 100
C94: 16 | D94: 25 | E94: 20.49180328 | F94: 20.83333333 | G94: 73.33333333 | J94: 16 | K94: 15 | L94: 25.86206897 | M94: 26.31578947 | N94: 75.43859649 | T94: 16 | U94: 20 | V94: 21.50537634 | W94: 21.50537634 | X94: 75.2688172 | AD94: 16 | AE94: 18 | AF94: 20.45454545 | AG94: 20.93023256 | AH94: 72.09302326
C95: 17 | D95: 17 | E95: 13.93442623 | F95: 14.16666667 | G95: 87.5 | J95: 17 | K95: 7 | L95: 12.06896552 | M95: 12.28070175 | N95: 87.71929825 | T95: 17 | U95: 14 | V95: 15.05376344 | W95: 15.05376344 | X95: 90.32258065 | AD95: 17 | AE95: 12 | AF95: 13.63636364 | AG95: 13.95348837 | AH95: 86.04651163
C96: 18 | D96: 12 | E96: 9.836065574 | F96: 10 | G96: 97.5 | J96: 18 | K96: 4 | L96: 6.896551724 | M96: 7.01754386 | N96: 94.73684211 | T96: 18 | U96: 7 | V96: 7.52688172 | W96: 7.52688172 | X96: 97.84946237 | AD96: 18 | AE96: 9 | AF96: 10.22727273 | AG96: 10.46511628 | AH96: 96.51162791
C97: 19 | D97: 2 | E97: 1.639344262 | F97: 1.666666667 | G97: 99.16666667 | J97: 19 | K97: 2 | L97: 3.448275862 | M97: 3.50877193 | N97: 98.24561404 | T97: 19 | U97: 2 | V97: 2.150537634 | W97: 2.150537634 | X97: 100 | AD97: 19 | AE97: 2 | AF97: 2.272727273 | AG97: 2.325581395 | AH97: 98.8372093
C98: 21 | D98: 1 | E98: 0.8196721311 | F98: 0.8333333333 | G98: 100 | J98: 21 | K98: 1 | L98: 1.724137931 | M98: 1.754385965 | N98: 100 | AD98: 21 | AE98: 1 | AF98: 1.136363636 | AG98: 1.162790698 | AH98: 100
C99: Total | D99: 120 | E99: 98.36065574 | F99: 100 | J99: Total | K99: 57 | L99: 98.27586207 | M99: 100 | AD99: Total | AE99: 86 | AF99: 97.72727273 | AG99: 100
B100: Missing | C100: System | D100: 2 | E100: 1.639344262 | I100: Missing | J100: System | K100: 1 | L100: 1.724137931 | AC100: Missing | AD100: System | AE100: 2 | AF100: 2.272727273
B101: Total | D101: 122 | E101: 100 | I101: Total | K101: 58 | T101: Total | U101: 93 | V101: 100 | W101: 100 | AC101: Total | AE101: 88 | AF101: 100 | AN101: Total | AO101: 63 | AP101: 100 | AQ101: 100
B103: LIBWITHa
A104: When I go to the library, I'm usually go... (check one) | D104: Frequency | E104: Percent | F104: Valid Percent | G104: Cumulative Percent
B105: Valid | C105: 1 | D105: 2 | E105: 1.639344262 | F105: 1.639344262 | G105: 1.639344262
C106: Alone | D106: 40 | E106: 32.78688525 | F106: 32.78688525 | G106: 34.42622951
C107: With a parent, stepparent, or adult guardian | D107: 22 | E107: 18.03278689 | F107: 18.03278689 | G107: 52.45901639
C108: With a sister(s)/brother(s) or stepsister(s)/stepbrother(s) | D108: 27 | E108: 22.13114754 | F108: 22.13114754 | G108: 74.59016393
C109: With friends or acquaintances around my age | D109: 28 | E109: 22.95081967 | F109: 22.95081967 | G109: 97.54098361
C110: With my school class or school club | D110: 1 | E110: 0.8196721311 | F110: 0.8196721311 | G110: 98.36065574
C111: With someone else (like whom?) | D111: 2 | E111: 1.639344262 | F111: 1.639344262 | G111: 100
C112: Total | D112: 122 | E112: 100 | F112: 100
B114: libwith2a
A115: When I go to the library, I'm usually go... (check one) - With someone else (like whom?) | D115: Frequency | E115: Percent | F115: Valid Percent | G115: Cumulative Percent
B116: Valid | C116: 1 | D116: 120 | E116: 98.36065574 | F116: 98.36065574 | G116: 98.36065574
C117: Boyfriend | D117: 1 | E117: 0.8196721311 | F117: 0.8196721311 | G117: 99.18032787
C118: Usually with an adult but sometimes by myself. | D118: 1 | E118: 0.8196721311 | F118: 0.8196721311 | G118: 100
C119: Total | D119: 122 | E119: 100 | F119: 100
B121: tximporta
A122: I think it is important for the library to have a Young Adult/Teen section: (check one) | D122: Frequency | E122: Percent | F122: Valid Percent | G122: Cumulative Percent
B123: Valid | C123: 1 | D123: 3 | E123: 2.459016393 | F123: 2.459016393 | G123: 2.459016393
C124: 1 | D124: 110 | E124: 90.16393443 | F124: 90.16393443 | G124: 92.62295082
C125: Does not matter to me | D125: 9 | E125: 7.37704918 | F125: 7.37704918 | G125: 100
C126: Total | D126: 122 | E126: 100 | F126: 100
B128: libuse2
A129: I use the following items at the library... (check all that apply) - Books, periodicals, references, or other material in paper or microfilm form | D129: Frequency | E129: Percent | F129: Valid Percent | G129: Cumulative Percent
B130: Valid | C130: 1 | D130: 14 | E130: 11.47540984 | F130: 11.47540984 | G130: 11.47540984
C131: Books, periodicals, references, or other material in paper o | D131: 108 | E131: 88.52459016 | F131: 88.52459016 | G131: 100
C132: Total | D132: 122 | E132: 100 | F132: 100
B134: libcomputa
A135: I use the following items at the library... (check all that apply) - Computers or laptops provided by the library | D135: Frequency | E135: Percent | F135: Valid Percent | G135: Cumulative Percent
B136: Valid | C136: 1 | D136: 28 | E136: 22.95081967 | F136: 22.95081967 | G136: 22.95081967
C137: Computers or laptops provided by the library | D137: 94 | E137: 77.04918033 | F137: 77.04918033 | G137: 100
C138: Total | D138: 122 | E138: 100 | F138: 100
B140: libdigita
A141: I use the following items at the library... (check all that apply) - Digital book readers (such as iPad, Kindle, etc.) provided by the library | D141: Frequency | E141: Percent | F141: Valid Percent | G141: Cumulative Percent
B142: Valid | C142: 1 | D142: 115 | E142: 94.26229508 | F142: 94.26229508 | G142: 94.26229508
C143: Digital book readers (such as iPad, Kindle, etc.) provided b | D143: 7 | E143: 5.737704918 | F143: 5.737704918 | G143: 100
C144: Total | D144: 122 | E144: 100 | F144: 100
B146: libvida
A147: I use the following items at the library... (check all that apply) - DVD, VCR, or other video/player provided by the library | D147: Frequency | E147: Percent | F147: Valid Percent | G147: Cumulative Percent
B148: Valid | C148: 1 | D148: 85 | E148: 69.67213115 | F148: 69.67213115 | G148: 69.67213115
C149: DVD, VCR, or other video/player provided by the library | D149: 37 | E149: 30.32786885 | F149: 30.32786885 | G149: 100
C150: Total | D150: 122 | E150: 100 | F150: 100
B152: libauda
A153: I use the following items at the library... (check all that apply) - CD or other audio player provided by the library | D153: Frequency | E153: Percent | F153: Valid Percent | G153: Cumulative Percent
B154: Valid | C154: 1 | D154: 96 | E154: 78.68852459 | F154: 78.68852459 | G154: 78.68852459
C155: CD or other audio player provided by the library | D155: 26 | E155: 21.31147541 | F155: 21.31147541 | G155: 100
C156: Total | D156: 122 | E156: 100 | F156: 100
B158: libtva
A159: I use the following items at the library... (check all that apply) - Television provided by the library | D159: Frequency | E159: Percent | F159: Valid Percent | G159: Cumulative Percent
B160: Valid | C160: 1 | D160: 118 | E160: 96.72131148 | F160: 96.72131148 | G160: 96.72131148
C161: Television provided by the library | D161: 4 | E161: 3.278688525 | F161: 3.278688525 | G161: 100
C162: Total | D162: 122 | E162: 100 | F162: 100
B164: libgamea
A165: I use the following items at the library... (check all that apply) - Video games provided by the library | D165: Frequency | E165: Percent | F165: Valid Percent | G165: Cumulative Percent
B166: Valid | C166: 1 | D166: 100 | E166: 81.96721311 | F166: 81.96721311 | G166: 81.96721311
C167: Video games provided by the library | D167: 22 | E167: 18.03278689 | F167: 18.03278689 | G167: 100
C168: Total | D168: 122 | E168: 100 | F168: 100
B170: owncomputa
A171: I use the following items at the library... (check all that apply) - My own computer laptop, notebook, cellphone, iPod, MP3 player, digital book reader,</br> or other equipment that I connect to library internet, video, or audio services | D171: Frequency | E171: Percent | F171: Valid Percent | G171: Cumulative Percent
B172: Valid | C172: 1 | D172: 66 | E172: 54.09836066 | F172: 54.09836066 | G172: 54.09836066
C173: My own computer laptop, notebook, cellphone, iPod, MP3 playe | D173: 56 | E173: 45.90163934 | F173: 45.90163934 | G173: 100
C174: Total | D174: 122 | E174: 100 | F174: 100
B176: libserva
A177: I use the following items at the library... (check all that apply) - Other library items or services (please specify) | D177: Frequency | E177: Percent | F177: Valid Percent | G177: Cumulative Percent
B178: Valid | C178: 1 | D178: 112 | E178: 91.80327869 | F178: 91.80327869 | G178: 91.80327869
C179: Other library items or services (please specify) | D179: 10 | E179: 8.196721311 | F179: 8.196721311 | G179: 100
C180: Total | D180: 122 | E180: 100 | F180: 100
B182: libitems3a
A183: I use the following items at the library... (check all that apply) - Other library items or services (please specify) | D183: Frequency | E183: Percent | F183: Valid Percent | G183: Cumulative Percent
B184: Valid | C184: 1 | D184: 112 | E184: 91.80327869 | F184: 91.80327869 | G184: 91.80327869
C185: bathroom | D185: 1 | E185: 0.8196721311 | F185: 0.8196721311 | G185: 92.62295082
C186: databases | D186: 1 | E186: 0.8196721311 | F186: 0.8196721311 | G186: 93.44262295
C187: I play the library's board games | D187: 1 | E187: 0.8196721311 | F187: 0.8196721311 | G187: 94.26229508
C188: magazines | D188: 1 | E188: 0.8196721311 | F188: 0.8196721311 | G188: 95.08196721
C189: movies, DVDs | D189: 1 | E189: 0.8196721311 | F189: 0.8196721311 | G189: 95.90163934
C190: museum passes, dvds, cds, vcr tapes, etc... | D190: 1 | E190: 0.8196721311 | F190: 0.8196721311 | G190: 96.72131148
C191: Private Study Room | D191: 1 | E191: 0.8196721311 | F191: 0.8196721311 | G191: 97.54098361
C192: study rooms | D192: 1 | E192: 0.8196721311 | F192: 0.8196721311 | G192: 98.36065574
C193: Textbooks | D193: 1 | E193: 0.8196721311 | F193: 0.8196721311 | G193: 99.18032787
C194: Youth programs and meetings | D194: 1 | E194: 0.8196721311 | F194: 0.8196721311 | G194: 100
C195: Total | D195: 122 | E195: 100 | F195: 100
B197: tsusea
A198: I visit the library's Young Adult/Teen section to... (check all that apply) - Attend a teen activity or program | D198: Frequency | E198: Percent | F198: Valid Percent | G198: Cumulative Percent
B199: Valid | C199: 1 | D199: 58 | E199: 47.54098361 | F199: 47.54098361 | G199: 47.54098361
C200: Attend a teen activity or program | D200: 64 | E200: 52.45901639 | F200: 52.45901639 | G200: 100
C201: Total | D201: 122 | E201: 100 | F201: 100
B203: tscomputa
A204: I visit the library's Young Adult/Teen section to... (check all that apply) - Use computers or the internet | D204: Frequency | E204: Percent | F204: Valid Percent | G204: Cumulative Percent
B205: Valid | C205: 1 | D205: 52 | E205: 42.62295082 | F205: 42.62295082 | G205: 42.62295082
C206: Use computers or the internet | D206: 70 | E206: 57.37704918 | F206: 57.37704918 | G206: 100
C207: Total | D207: 122 | E207: 100 | F207: 100
B209: tshanga
A210: I visit the library's Young Adult/Teen section to... (check all that apply) - Hang out with friends | D210: Frequency | E210: Percent | F210: Valid Percent | G210: Cumulative Percent
B211: Valid | C211: 1 | D211: 63 | E211: 51.63934426 | F211: 51.63934426 | G211: 51.63934426
C212: Hang out with friends | D212: 59 | E212: 48.36065574 | F212: 48.36065574 | G212: 100
C213: Total | D213: 122 | E213: 100 | F213: 100
B215: tsmeeta
A216: I visit the library's Young Adult/Teen section to... (check all that apply) - Meet new people | D216: Frequency | E216: Percent | F216: Valid Percent | G216: Cumulative Percent
B217: Valid | C217: 1 | D217: 93 | E217: 76.2295082 | F217: 76.2295082 | G217: 76.2295082
C218: Meet new people | D218: 29 | E218: 23.7704918 | F218: 23.7704918 | G218: 100
C219: Total | D219: 122 | E219: 100 | F219: 100
B221: tscda
A222: I visit the library's Young Adult/Teen section to... (check all that apply) - Find CDs, DVDs | D222: Frequency | E222: Percent | F222: Valid Percent | G222: Cumulative Percent
B223: Valid | C223: 1 | D223: 87 | E223: 71.31147541 | F223: 71.31147541 | G223: 71.31147541
C224: Find CDs, DVDs | D224: 35 | E224: 28.68852459 | F224: 28.68852459 | G224: 100
C225: Total | D225: 122 | E225: 100 | F225: 100
B227: tsbooka
A228: I visit the library's Young Adult/Teen section to... (check all that apply) - Check out magazines and books | D228: Frequency | E228: Percent | F228: Valid Percent | G228: Cumulative Percent
... 497 more rows
